bitfinex/quotes_ETHUSD_20250822
["timestamp","ask_amount","ask_price","bid_price","bid_amount"]
[1755836457437,5.707,4314.9,4314.6,0.001]
[1755836457757,0.3124,4314.7,4314.6,0.001]
[1755836458142,4.6929,4314.7,4314.6,0.001]
[1755836458667,4.6929,4314.7,4314.6,0.093949]
[1755836458877,5.0557611,4314.7,4314.6,0.093949]
[1755836459366,1.1317611,4314.7,4314.6,0.001]
[1755836459567,0.6752611,4314.7,4314.6,0.001]
[1755836459734,4.6002611,4314.7,4314.6,0.001]
[1755836459935,5.0567611,4314.7,4314.6,0.001]
[1755836460575,5.0567611,4314.7,4314.5,0.093949]
[1755836460875,7.0446752,4314.6,4314.3,0.001]
[1755836461075,0.3124,4314.4,4314.3,0.001]
[1755836461238,4.2394,4314.4,4314.3,0.001]
[1755836461437,4.6959,4314.4,4314.3,0.001]
[1755836462701,0.7689,4314.4,4314.3,0.001]
[1755836462931,0.7689,4314.4,4314.3,0.3103]
[1755836462932,3.926,4314.4,4314.3,0.3103]
[1755836463797,3.929,4314.4,4314.3,0.3103]
[1755836464006,7.3570752,4314.4,4314.3,0.001]
[1755836464313,11.2860752,4314.4,4314.3,0.001]
[1755836465896,7.3570752,4314.4,4314.3,0.001]
[1755836466320,11.2870752,4314.4,4314.3,0.001]
[1755836467117,7.3570752,4314.4,4314.3,0.001]
[1755836467286,11.64996294,4314.4,4314.3,0.001]
[1755836467488,7.71996294,4314.4,4314.3,0.001]
[1755836467690,11.64896294,4314.4,4314.3,0.001]
[1755836468481,11.64996294,4314.4,4314.3,0.001]
[1755836468995,11.64996294,4314.4,4314.2,0.001]
[1755836469223,0.4742,4314.3,4314.2,0.001]
[1755836469394,0.777,4314.3,4314.2,0.001]
[1755836469726,4.707,4314.3,4314.2,0.001]
[1755836470192,4.707,4314.3,4314.0,0.001]
[1755836470391,0.4742,4314.2,4314.0,0.001]
[1755836470593,6.0158,4314.1,4314.0,0.001]
[1755836471021,6.49,4314.1,4314.0,0.001]
[1755836471394,6.489,4314.1,4314.0,0.001]
[1755836471808,6.0148,4314.1,4314.0,0.001]
[1755836472033,6.489,4314.1,4314.0,0.001]
[1755836476099,2.56,4314.1,4314.0,0.001]
[1755836476628,2.0858,4314.1,4314.0,0.001]
[1755836476993,6.0118,4314.1,4314.0,0.001]
[1755836479910,2.0858,4314.1,4314.0,0.001]
[1755836480225,6.0108,4314.1,4314.0,0.001]
[1755836480697,6.37370248,4314.1,4314.0,0.001]
[1755836481050,6.37270248,4314.1,4314.0,0.001]
[1755836481744,6.37170248,4314.1,4314.0,0.001]
[1755836481945,2.14590248,4314.1,4314.0,0.7589]
[1755836482292,6.06790248,4314.1,4314.0,0.3041]
[1755836484950,2.14590248,4314.1,4314.0,1.001305]
[1755836485107,2.14590248,4314.1,4314.0,1.456105]
[1755836485306,0.36290248,4314.1,4314.0,4.15376351]
[1755836485614,0.002,4314.2,4314.1,2.31798057]
[1755836485832,0.002,4314.2,4314.1,0.7579]
[1755836486210,0.002,4314.2,4314.1,6.07588057]
[1755836486405,0.002,4314.2,4314.1,3.7579]
[1755836486825,0.002,4314.2,4314.1,6.98720644]
[1755836487665,0.002,4314.2,4314.1,7.68423944]
[1755836488947,0.36480345,4314.2,4314.1,7.68423944]
[1755836489945,0.36480345,4314.2,4314.1,8.34423944]
[1755836498333,0.36480345,4314.2,4314.1,6.02625887]
[1755836498832,0.36480345,4314.2,4314.1,8.34423944]
[1755836505255,0.36480345,4314.2,4314.1,7.88943944]
[1755836505456,0.65120345,4314.2,4314.1,6.67501357]
[1755836505664,1.08270345,4314.2,4314.1,6.67501357]
[1755836505993,0.36480345,4314.2,4314.1,6.67501357]
[1755836506288,0.36480345,4314.2,4314.1,6.98961357]
[1755836507461,0.002,4314.2,4314.1,6.67501357]
[1755836507695,0.2884,4314.2,4314.1,6.67501357]
[1755836508203,0.2884,4314.2,4314.1,6.01501357]
[1755836508564,0.002,4314.2,4314.1,6.01501357]
[1755836509162,0.002,4314.2,4314.1,6.32961357]
[1755836509593,0.002,4314.2,4314.1,6.01501357]
[1755836509962,0.2884,4314.2,4314.1,3.697033]
[1755836510583,0.2884,4314.2,4314.1,6.01501357]
[1755836510901,0.7199,4314.2,4314.1,3.697033]
[1755836511071,1.08271516,4314.2,4314.1,3.697033]
[1755836511268,1.08271516,4314.2,4314.1,0.697033]
[1755836512504,1.08271516,4314.2,4314.0,0.001]
[1755836512677,0.4315,4314.1,4314.0,0.001]
[1755836512877,0.7179,4314.1,4314.0,0.001]
[1755836518074,9.0890752,4314.1,4314.0,0.001]
[1755836520488,5.9894,4314.1,4314.0,0.001]
[1755836520797,1.783,4314.1,4314.0,0.3156]
[1755836522221,1.783,4314.1,4314.0,0.001]
[1755836522222,2.5009,4314.1,4314.0,0.001]
[1755836524623,6.4209,4314.1,4314.0,0.001]
[1755836525917,2.5009,4314.1,4314.0,0.001]
[1755836526305,6.4209,4314.1,4314.0,0.001]
[1755836529341,6.78379663,4314.1,4314.0,0.001]
[1755836532733,2.86379663,4314.1,4314.0,0.001]
[1755836533052,6.78379663,4314.1,4314.0,0.001]
[1755836533731,6.35229663,4314.1,4314.0,0.001]
[1755836533949,6.80659663,4314.1,4314.0,0.001]
[1755836536516,2.88659663,4314.1,4314.0,0.001]
[1755836536725,6.06589663,4314.1,4314.0,0.001]
[1755836536943,5.703,4314.1,4314.0,0.001]
[1755836537250,5.9889,4314.1,4314.0,0.001]
[1755836538068,6.4432,4314.1,4314.0,0.001]
[1755836540215,6.80609234,4314.1,4314.0,0.001]
[1755836540752,7.30664984,4314.1,4314.0,0.001]
[1755836541161,6.35179234,4314.1,4314.0,0.001]
[1755836541312,2.14589234,4314.1,4314.0,0.001]
[1755836541647,2.14589234,4314.1,4314.0,0.3159]
[1755836542129,6.06589234,4314.1,4314.0,0.7451]
[1755836542653,6.06589234,4314.1,4314.0,0.3159]
[1755836543321,2.14589234,4314.1,4314.0,0.3159]
[1755836543513,6.06589234,4314.1,4314.0,0.3159]
[1755836544118,2.14589234,4314.1,4314.0,0.3159]
[1755836544346,6.06589234,4314.1,4314.0,0.3159]
[1755836545527,2.43179234,4314.1,4314.0,0.001]
[1755836545757,6.35179234,4314.1,4314.0,0.001]
[1755836546057,6.80609234,4314.1,4314.0,0.001]
[1755836546255,6.4432,4314.1,4314.0,0.001]
[1755836546959,6.94443441,4314.1,4314.0,0.001]
[1755836548084,37.82195411,4314.1,4314.0,0.001]
[1755836548260,37.95247794,4314.1,4314.0,0.001]
[1755836548565,37.82096661,4314.1,4314.0,0.001]
[1755836549260,38.18392439,4314.1,4314.0,0.001]
[1755836549469,38.8099717,4314.1,4314.0,0.001]
[1755836549668,38.80996816,4314.1,4314.0,0.001]
[1755836549853,38.80980492,4314.1,4314.0,0.001]
[1755836551042,0.66,4314.0,4313.8,0.021]
[1755836551239,0.66,4314.0,4313.7,0.001]
[1755836551240,0.66,4313.8,4313.7,0.001]
[1755836551435,0.66,4313.8,4313.6,0.001]
[1755836551436,33.66,4313.7,4313.6,0.001]
[1755836551635,3.66,4313.6,4311.9,0.001]
[1755836551907,7.5340752,4313.0,4311.9,0.001]
[1755836552201,17.92161728,4313.0,4311.9,0.001]
[1755836552355,17.410959,4313.0,4311.9,0.001]
[1755836552697,17.77403222,4313.0,4311.9,0.001]
[1755836552869,13.85403222,4313.0,4311.9,0.001]
[1755836553055,17.77303222,4313.0,4311.9,0.001]
[1755836553254,13.85403222,4313.0,4311.9,0.001]
[1755836553469,17.77303222,4313.0,4311.9,0.001]
[1755836554290,33.66,4312.9,4311.9,0.001]
[1755836554474,35.74310719,4312.9,4311.9,0.001]
[1755836554678,35.74248442,4312.9,4311.9,0.001]
[1755836554854,34.87553441,4312.8,4311.9,0.001]
[1755836555057,30.78713441,4312.7,4311.9,0.001]
[1755836555259,31.24143441,4312.7,4311.9,0.001]
[1755836555607,31.23935946,4312.7,4311.9,0.001]
[1755836556266,6.5881752,4312.5,4311.9,0.001]
[1755836556469,41.29323466,4312.5,4311.9,0.001]
[1755836556666,30.49915946,4312.4,4311.9,0.001]
[1755836556860,31.23935946,4312.4,4311.9,0.001]
[1755836557487,34.6602,4312.4,4311.9,0.001]
[1755836558263,35.3202,4312.4,4311.9,0.001]
[1755836558454,0.66,4312.2,4310.9,0.001]
[1755836558656,6.5881752,4311.0,4310.9,0.001]
[1755836558891,12.2921752,4311.0,4310.9,0.3137]
[1755836559810,12.96192843,4311.0,4310.9,0.001]
[1755836560470,13.40822843,4311.0,4310.9,0.001]
[1755836560881,20.40822843,4311.0,4310.9,0.001]
[1755836561483,19.96192843,4311.0,4310.9,0.001]
[1755836561876,20.40822843,4311.0,4310.9,0.001]
[1755836562309,13.40822843,4311.0,4310.9,0.001]
[1755836562880,9.04192843,4311.0,4310.9,0.001]
[1755836563155,12.65532843,4311.0,4310.9,0.3137]
[1755836563320,12.65632843,4311.0,4310.9,0.3137]
[1755836564174,12.65632843,4311.0,4310.9,0.001]
[1755836564683,12.96292843,4311.0,4310.9,0.001]
[1755836566006,12.5997752,4311.0,4310.9,0.001]
[1755836567108,13.0460752,4311.0,4310.9,0.001]
[1755836568413,12.2931752,4311.0,4310.9,0.001]
[1755836568615,12.2931752,4311.0,4310.9,0.3137]
[1755836568913,12.65636906,4311.0,4310.9,0.001]
[1755836569216,8.73536906,4311.0,4310.9,0.001]
[1755836569384,12.65636906,4311.0,4310.9,0.001]
[1755836569718,12.96296906,4311.0,4310.9,0.001]
[1755836569903,8.73536906,4311.0,4310.9,0.001]
[1755836570085,12.65636906,4311.0,4310.9,0.3137]
[1755836570416,12.96296906,4311.0,4310.9,0.001]
[1755836572886,8.73536906,4311.0,4310.9,0.001]
[1755836573087,6.06919386,4311.0,4310.9,0.3137]
[1755836573315,6.06919386,4311.0,4310.9,0.001]
[1755836573515,6.37579386,4311.0,4310.9,0.001]
[1755836574608,7.48209386,4311.0,4310.9,0.001]
[1755836575416,37.48209386,4311.0,4310.9,0.001]
[1755836575921,37.1189,4311.0,4310.9,0.001]
[1755836576381,37.61777741,4311.0,4310.9,0.001]
[1755836576987,37.6177774,4311.0,4310.9,0.001]
[1755836578625,37.1714774,4311.0,4310.9,0.001]
[1755836579116,7.53469656,4311.0,4310.9,0.001]
[1755836579619,7.98099656,4311.0,4310.9,0.001]
[1755836580196,3.30609656,4311.0,4310.9,0.001]
[1755836580393,6.56809656,4311.0,4310.9,0.3137]
[1755836580997,6.87469656,4311.0,4310.9,0.001]
[1755836581192,3.39899656,4311.0,4310.9,0.001]
[1755836581397,2.64609656,4311.0,4310.9,0.001]
[1755836581593,6.56809656,4311.0,4310.9,0.3137]
[1755836581829,6.87469656,4311.0,4310.9,0.001]
[1755836582032,7.32099656,4311.0,4310.9,0.001]
[1755836582226,6.37581916,4311.0,4310.9,0.001]
[1755836582530,6.56987286,4311.0,4310.9,0.001]
[1755836583310,2.64787286,4311.0,4310.9,0.001]
[1755836583507,6.56987286,4311.0,4310.9,0.001]
[1755836583708,7.50228998,4311.0,4310.9,0.001]
[1755836584317,7.94858998,4311.0,4310.9,0.001]
[1755836584640,37.32277286,4311.0,4310.9,0.001]
[1755836584838,38.15650345,4311.0,4310.9,0.001]
[1755836585039,34.89450345,4311.0,4310.9,0.001]
[1755836585207,38.81650345,4311.0,4310.9,0.001]
[1755836585537,37.98277286,4311.0,4310.9,0.001]
[1755836586343,38.20035209,4311.0,4310.9,0.001]
[1755836586725,0.66,4310.9,4310.8,0.021]
[1755836586926,32.30276024,4310.9,4310.8,0.021]
[1755836587248,2.74906024,4310.9,4310.8,0.021]
[1755836588521,1.9135537,4310.9,4310.8,0.021]
[1755836589331,2.30527992,4310.9,4310.8,0.021]
[1755836589643,6.69077992,4310.9,4310.8,0.021]
[1755836589807,6.07245143,4310.9,4310.8,0.021]
[1755836590009,36.07245143,4310.9,4310.8,0.021]
[1755836590453,43.06245143,4310.9,4310.8,0.021]
[1755836592109,3.0,4310.8,4310.6,0.001]
[1755836592313,13.57966715,4310.7,4310.4,0.001]
[1755836592530,30.71840535,4310.6,4310.4,0.001]
[1755836592735,34.94890535,4310.5,4310.4,0.001]
[1755836593114,35.41240535,4310.5,4310.4,0.001]
[1755836593636,36.24841237,4310.5,4310.4,0.001]
[1755836593850,36.61167282,4310.5,4310.4,0.001]
[1755836594767,13.14817282,4310.5,4310.4,0.001]
[1755836594969,12.0036658,4310.5,4310.4,0.743]
[1755836595257,12.0036658,4310.5,4310.4,0.2925]
[1755836595557,12.0036658,4310.5,4310.4,0.001]
[1755836595752,12.3121658,4310.5,4310.4,0.001]
[1755836596330,12.0036658,4310.5,4310.4,0.001]
[1755836596930,5.0036658,4310.5,4310.4,0.001]
[1755836597159,4.78591415,4310.5,4310.4,0.001]
[1755836597360,5.00355851,4310.5,4310.4,0.2925]
[1755836597655,4.4226537,4310.5,4310.4,0.2925]
[1755836597862,4.6402815,4310.5,4310.4,0.2925]
[1755836598952,4.9487815,4310.5,4310.4,0.001]
[1755836599430,4.6402815,4310.5,4310.4,0.001]
[1755836600151,4.6402815,4310.5,4310.4,0.2925]
[1755836600566,0.7182815,4310.5,4310.4,0.2925]
[1755836600859,0.36323237,4310.5,4310.4,0.743]
[1755836601058,4.28523237,4310.5,4310.4,0.743]
[1755836601262,0.86388607,4310.5,4310.4,0.743]
[1755836601560,0.36323237,4310.5,4310.4,0.743]
[1755836601937,4.28423237,4310.5,4310.4,0.743]
[1755836602265,0.86388607,4310.5,4310.4,0.743]
[1755836602430,4.28523237,4310.5,4310.4,0.2925]
[1755836602630,0.86388607,4310.5,4310.4,0.2925]
[1755836602834,4.28423237,4310.5,4310.4,0.2925]
[1755836603137,6.56988607,4310.5,4310.4,0.2925]
[1755836603860,6.56907409,4310.5,4310.4,0.001]
[1755836604170,6.56907409,4310.5,4310.4,0.2925]
[1755836604366,6.87757409,4310.5,4310.4,0.001]
[1755836605245,8.18542824,4310.5,4310.4,0.001]
[1755836605766,4.26442824,4310.5,4310.4,0.001]
[1755836605945,8.18542824,4310.5,4310.4,0.001]
[1755836606565,8.18543086,4310.5,4310.4,0.001]
[1755836608069,4.26443086,4310.5,4310.4,0.001]
[1755836608277,7.72214598,4310.5,4310.4,0.001]
[1755836608564,7.35972559,4310.5,4310.4,0.001]
[1755836611751,3.13022559,4310.5,4310.4,0.2925]
[1755836611992,2.2856537,4310.5,4310.4,0.743]
[1755836612165,6.2066537,4310.5,4310.4,0.743]
[1755836612543,6.56985289,4310.5,4310.4,0.743]
[1755836614649,13.15802809,4310.5,4310.4,0.743]
[1755836615942,9.23702809,4310.5,4310.4,0.743]
[1755836616169,13.15802809,4310.5,4310.4,0.743]
[1755836616682,1.785,4310.5,4310.4,0.743]
[1755836616894,5.706,4310.5,4310.4,0.743]
[1755836617047,1.785,4310.5,4310.4,0.743]
[1755836617386,5.706,4310.5,4310.4,0.743]
[1755836618174,5.706,4310.5,4310.4,6.73924973]
[1755836618175,1.785,4310.5,4310.4,6.73924973]
[1755836618356,5.706,4310.5,4310.4,4.41927943]
[1755836619684,2.15014291,4310.5,4310.4,4.41927943]
[1755836619887,6.07114291,4310.5,4310.4,4.41927943]
[1755836621147,6.07014291,4310.5,4310.4,4.41927943]
[1755836621346,2.15014291,4310.5,4310.4,4.41927943]
[1755836621586,6.07014291,4310.5,4310.4,4.41927943]
[1755836622258,6.07014291,4310.5,4310.4,5.11695443]
[1755836623691,2.15014291,4310.5,4310.4,7.43692473]
[1755836623892,6.07014291,4310.5,4310.4,5.11695443]
[1755836624189,2.15014291,4310.5,4310.4,5.11695443]
[1755836624394,6.07014291,4310.5,4310.4,5.11695443]
[1755836626757,2.15014291,4310.5,4310.4,5.11695443]
[1755836626974,6.06914291,4310.5,4310.4,5.11695443]
[1755836628066,6.06914291,4310.5,4310.4,7.43692473]
[1755836628067,0.002,4310.5,4310.4,7.43692473]
[1755836628911,0.002,4310.5,4310.4,8.09692473]
[1755836629574,0.002,4310.5,4310.4,14.68509993]
[1755836630172,0.002,4310.5,4310.4,5.11695443]
[1755836630358,0.002,4310.5,4310.4,8.09692473]
[1755836634707,0.002,4311.0,4310.9,2.97970122]
[1755836634875,0.002,4311.0,4310.9,17.31852385]
[1755836635074,0.002,4311.0,4310.9,17.76962385]
[1755836635673,0.002,4311.0,4310.9,17.86261385]
[1755836636300,0.002,4311.0,4310.9,22.15261385]
[1755836637471,0.002,4311.1,4311.0,5.97964741]
[1755836637675,0.002,4311.1,4311.0,9.09558704]
[1755836637877,0.002,4311.1,4311.0,15.68376224]
[1755836639714,0.002,4311.1,4311.0,9.09558704]
[1755836640004,0.002,4311.1,4311.0,9.18856704]
[1755836640210,0.002,4311.1,4311.0,13.10556704]
[1755836641182,0.002,4311.1,4311.0,19.69374224]
[1755836642912,0.002,4311.1,4311.0,19.87180919]
[1755836643114,0.002,4311.1,4311.0,13.28363399]
[1755836644033,0.002,4311.4,4311.3,8.9076612]
[1755836644234,0.002,4311.4,4311.3,18.34648162]
[1755836644729,0.002,4311.4,4311.3,18.79758162]
[1755836645912,0.002,4311.4,4311.3,18.34648162]
[1755836646107,0.002,4311.4,4311.3,11.75830642]
[1755836646836,0.002,4311.4,4311.3,12.20940642]
[1755836647543,0.292,4311.4,4311.3,11.45460642]
[1755836647703,0.002,4311.4,4311.3,11.75730642]
[1755836649611,0.002,4311.4,4311.3,11.45460642]
[1755836650932,0.002,4311.4,4311.3,11.77120642]
[1755836651233,0.002,4311.4,4311.3,12.87730642]
[1755836651433,1e-08,4311.4,4311.3,12.87730642]
[1755836652839,1e-08,4311.4,4311.3,17.16730642]
[1755836655717,1e-08,4311.4,4311.3,16.40460642]
[1755836655921,0.72220001,4311.4,4311.3,13.524486]
[1755836656124,0.72220001,4311.4,4311.3,10.524486]
[1755836656544,0.72220001,4311.4,4311.3,11.184486]
[1755836656747,0.72220001,4311.4,4311.3,14.184486]
[1755836657962,0.28970001,4311.4,4311.3,14.184486]
[1755836658131,0.28970001,4311.4,4311.3,15.88929893]
[1755836658536,0.28970001,4311.4,4311.3,11.59929893]
[1755836658926,1e-08,4311.4,4311.3,11.59929893]
[1755836660770,1e-08,4311.4,4311.3,12.36199893]
[1755836661142,1e-08,4311.4,4311.3,11.91589893]
[1755836662622,1e-08,4311.4,4311.3,12.36199893]
[1755836664539,1e-08,4311.4,4311.3,16.65199893]
[1755836665953,1e-08,4311.4,4311.3,15.88929893]
[1755836666567,1e-08,4311.4,4311.3,16.20589893]
[1755836667357,1e-08,4311.4,4311.3,16.37945945]
[1755836670267,1e-08,4311.4,4311.3,12.08945945]
[1755836671694,0.72220001,4311.4,4311.3,7.85785945]
[1755836671996,0.72220001,4311.4,4311.3,11.77185945]
[1755836672373,0.72220001,4311.4,4311.3,11.77285945]
[1755836673300,0.28970001,4311.4,4311.3,11.77285945]
[1755836675506,1e-08,4311.4,4311.3,12.08945945]
[1755836677996,1e-08,4311.4,4311.3,12.52565945]
[1755836678499,1e-08,4311.4,4311.3,12.08945945]
[1755836679291,1e-08,4311.4,4311.3,11.77285945]
[1755836680897,1e-08,4311.4,4311.3,11.59929893]
[1755836681472,1e-08,4311.4,4311.3,11.90909893]
[1755836683002,0.31540001,4311.4,4311.3,7.68529893]
[1755836683207,0.76650001,4311.4,4311.3,11.59829893]
[1755836684271,0.76650001,4311.4,4311.3,5.980486]
[1755836684609,0.76650001,4311.4,4311.3,9.893486]
[1755836688998,0.76650001,4311.4,4311.3,0.001]
[1755836689924,1.12959139,4311.4,4311.3,0.001]
[1755836697646,0.76650001,4311.4,4311.3,0.001]
[1755836700749,1.12961734,4311.4,4311.3,0.001]
[1755836702177,31.12961734,4311.4,4311.3,0.001]
[1755836702347,31.62933419,4311.4,4311.3,0.001]
[1755836702547,0.66,4311.3,4311.0,0.001]
[1755836702851,6.9035752,4311.1,4311.0,0.001]
[1755836703049,12.5995752,4311.1,4311.0,0.001]
[1755836703431,9.1386752,4311.1,4311.0,0.001]
[1755836703631,13.0506752,4311.1,4311.0,0.001]
[1755836704238,9.1386752,4311.1,4311.0,0.001]
[1755836704449,13.0516752,4311.1,4311.0,0.001]
[1755836704648,9.1386752,4311.1,4311.0,0.001]
[1755836704846,13.0516752,4311.1,4311.0,0.001]
[1755836705865,9.1386752,4311.1,4311.0,0.001]
[1755836706043,13.0506752,4311.1,4311.0,0.001]
[1755836707270,13.41384799,4311.1,4311.0,0.001]
[1755836707867,9.50184799,4311.1,4311.0,0.001]
[1755836708044,13.41484799,4311.1,4311.0,0.001]
[1755836709242,43.41484799,4311.1,4310.8,0.001]
[1755836709466,3.66,4310.9,4310.8,0.001]
[1755836709636,6.5881752,4310.6,4310.5,0.001]
[1755836709839,30.66,4310.5,4309.9,0.001]
[1755836710042,6.8742752,4310.2,4309.9,0.001]
[1755836710253,12.5722752,4310.2,4309.9,0.001]
[1755836710451,13.0250752,4310.2,4309.9,0.001]
[1755836711672,16.6850752,4310.2,4309.9,0.001]
[1755836711874,16.6850752,4310.2,4309.5,0.001]
[1755836711875,3.0,4310.0,4309.5,0.001]
[1755836712079,6.8742752,4309.6,4309.5,0.001]
[1755836712245,10.7862752,4309.6,4309.5,0.001]
[1755836712772,11.60240124,4309.6,4309.5,0.001]
[1755836713951,7.69040124,4309.6,4309.5,0.001]
[1755836714145,11.60340124,4309.6,4309.5,0.001]
[1755836716348,7.69040124,4309.6,4309.5,0.001]
[1755836716549,12.26340124,4309.6,4309.5,0.001]
[1755836716776,11.9000752,4309.6,4309.5,0.001]
[1755836718278,3.66,4309.5,4309.0,0.001]
[1755836718487,6.8742752,4309.1,4309.0,0.001]
[1755836718663,12.5722752,4309.1,4309.0,0.001]
[1755836719077,9.1120752,4309.1,4309.0,0.001]
[1755836719286,13.0250752,4309.1,4309.0,0.001]
[1755836719693,9.1120752,4309.1,4309.0,0.001]
[1755836719880,12.5722752,4309.1,4309.0,0.001]
[1755836720081,12.9356135,4309.1,4309.0,0.001]
[1755836720291,13.3884135,4309.1,4309.0,0.001]
[1755836721794,9.0226135,4309.1,4309.0,0.001]
[1755836722112,12.9356135,4309.1,4309.0,0.001]
[1755836722594,13.3884135,4309.1,4309.0,0.001]
[1755836723665,12.9356135,4309.1,4309.0,0.001]
[1755836723871,9.0226135,4309.1,4309.0,0.001]
[1755836724073,12.6495135,4309.1,4309.0,0.3175]
[1755836724297,8.7365135,4309.1,4309.0,0.3175]
[1755836724598,12.6495135,4309.1,4309.0,0.3175]
[1755836725574,8.7365135,4309.1,4309.0,0.3175]
[1755836725776,12.6495135,4309.1,4309.0,0.7828]
[1755836725994,12.2861752,4309.1,4309.0,0.3175]
[1755836727279,8.3731752,4309.1,4309.0,0.3175]
[1755836727488,12.2861752,4309.1,4309.0,0.3175]
[1755836728169,12.5722752,4309.1,4309.0,0.001]
[1755836729181,12.2861752,4309.1,4309.0,0.001]
[1755836730112,12.5722752,4309.1,4309.0,0.001]
[1755836730315,12.93559738,4309.1,4309.0,0.001]
[1755836730804,13.88798874,4309.1,4309.0,0.001]
[1755836731299,46.88798874,4309.1,4309.0,0.001]
[1755836731700,16.88798874,4309.1,4309.0,0.001]
[1755836732711,46.88798874,4309.1,4309.0,0.001]
[1755836733408,47.54798874,4309.1,4309.0,0.001]
[1755836734099,43.63498874,4309.1,4309.0,0.001]
[1755836734287,47.54798874,4309.1,4309.0,0.001]
[1755836734984,3.66,4309.0,4308.6,0.001]
[1755836735200,8.15927301,4308.7,4308.6,0.001]
[1755836735390,12.57186437,4308.7,4308.6,0.001]
[1755836735708,12.39966656,4308.7,4308.6,0.001]
[1755836736577,19.39966656,4308.7,4308.6,0.001]
[1755836737107,12.39966656,4308.7,4308.6,0.001]
[1755836737406,42.61693323,4308.7,4308.6,0.001]
[1755836737607,46.45026365,4308.7,4308.6,0.001]
[1755836737816,45.61693323,4308.7,4308.6,0.001]
[1755836738202,3.66,4308.6,4308.1,0.001]
[1755836738387,6.8754752,4308.2,4308.1,0.001]
[1755836738583,13.07406656,4308.2,4308.1,0.001]
[1755836738782,13.52786656,4308.2,4308.1,0.001]
[1755836739313,43.52786656,4308.2,4308.1,0.001]
[1755836739880,45.02243799,4308.2,4308.1,0.001]
[1755836740112,45.23986206,4308.2,4308.1,0.001]
[1755836740314,45.02243799,4308.2,4308.1,0.001]
[1755836740610,44.18786656,4308.2,4308.1,0.001]
[1755836740825,42.78676656,4308.2,4308.1,0.2971]
[1755836741120,43.07406656,4308.2,4308.1,0.001]
[1755836741525,43.52786656,4308.2,4308.1,0.001]
[1755836745036,47.40517056,4308.2,4308.1,0.001]
[1755836747336,18.23933519,4308.2,4308.1,0.001]
[1755836747639,25.22922113,4308.2,4308.1,0.001]
[1755836747825,55.22922113,4308.2,4308.1,0.001]
[1755836748226,54.3950565,4308.2,4308.1,0.001]
[1755836748817,57.26486656,4308.2,4308.1,0.001]
[1755836749043,60.72406656,4308.2,4308.1,0.001]
[1755836749243,61.17786656,4308.2,4308.1,0.001]
[1755836749946,61.17786656,4308.2,4308.1,0.758]
[1755836749947,20.18859136,4308.2,4308.1,0.758]
[1755836750147,16.27559136,4308.2,4308.1,0.758]
[1755836750348,9.28559136,4308.2,4308.1,0.758]
[1755836750514,12.699,4308.2,4308.1,0.758]
[1755836752434,13.06239485,4308.2,4308.1,0.758]
[1755836753836,6.06239485,4308.2,4308.1,0.758]
[1755836755042,6.06239485,4308.2,4308.1,0.2971]
[1755836755640,6.06239485,4308.2,4308.1,0.758]
[1755836755838,5.699,4308.2,4308.1,0.758]
[1755836756344,1.786,4308.2,4308.1,0.758]
[1755836756532,5.699,4308.2,4308.1,0.758]
[1755836756912,5.699,4308.2,4308.1,0.2971]
[1755836757213,5.699,4308.2,4308.1,0.001]
[1755836757411,5.9863,4308.2,4308.1,0.001]
[1755836757711,6.94084177,4308.2,4308.1,0.001]
[1755836758128,6.4401,4308.2,4308.1,0.001]
[1755836758444,6.48703542,4308.2,4308.1,0.001]
[1755836758645,6.19973542,4308.2,4308.1,0.001]
[1755836758940,6.19873542,4308.2,4308.1,0.758]
[1755836759143,6.19873542,4308.2,4308.1,0.2971]
[1755836759312,7.30327048,4308.2,4308.1,0.001]
[1755836759951,2.65017048,4308.2,4308.1,0.001]
[1755836760453,6.06143506,4308.2,4308.1,0.758]
[1755836763349,6.06143506,4308.2,4308.1,0.2971]
[1755836763947,6.06143506,4308.2,4308.1,0.758]
[1755836764144,6.06143506,4308.2,4308.1,0.2971]
[1755836765234,6.34873506,4308.2,4308.1,0.001]
[1755836765453,6.80253506,4308.2,4308.1,0.001]
[1755836765629,6.34873506,4308.2,4308.1,0.001]
[1755836765821,6.4391,4308.2,4308.1,0.001]
[1755836766026,6.94032636,4308.2,4308.1,0.001]
[1755836768570,6.93932636,4308.2,4308.1,0.001]
[1755836768740,2.57452636,4308.2,4308.1,0.001]
[1755836768940,6.48552636,4308.2,4308.1,0.001]
[1755836769338,2.57452636,4308.2,4308.1,0.001]
[1755836769542,6.94522636,4308.2,4308.1,0.001]
[1755836769774,3.3976712,4308.2,4308.1,0.001]
[1755836769963,7.3086712,4308.2,4308.1,0.001]
[1755836770856,13.8968464,4308.2,4308.1,0.001]
[1755836771941,13.4371464,4308.2,4308.1,0.001]
[1755836772145,9.5261464,4308.2,4308.1,0.001]
[1755836772342,2.6506712,4308.2,4308.1,0.7336]
[1755836772543,6.06044484,4308.2,4308.1,0.7336]
[1755836773475,6.06044484,4308.2,4308.1,0.2879]
[1755836774065,8.73762004,4308.2,4308.1,0.2879]
[1755836774303,12.64862004,4308.2,4308.1,0.7336]
[1755836774599,12.64862004,4308.2,4308.1,0.2879]
[1755836774959,6.06044484,4308.2,4308.1,0.7336]
[1755836775403,5.697,4308.2,4308.1,0.7336]
[1755836775809,6.06039701,4308.2,4308.1,0.7336]
[1755836779318,6.36959701,4308.2,4308.1,0.001]
[1755836779602,6.36959701,4308.2,4304.3,2.32324996]
[1755836779603,0.022,4307.4,4305.8,0.02]